bitfinex-derivatives/quotes_SOLF0:USTF0_20251125
["timestamp","ask_amount","ask_price","bid_price","bid_amount"]
[1764101083031,0.0485169,136.54,136.53,1.76859013]
[1764101083337,0.0485169,136.54,136.52,0.05481809]
[1764101083539,0.2385169,136.54,136.53,1.76630864]
[1764101084433,0.2385169,136.54,136.53,4.92630864]
[1764101084434,0.0485169,136.54,136.53,4.92630864]
[1764101084633,0.0485169,136.54,136.53,3.16]
[1764101085728,0.0485169,136.54,136.52,0.05481809]
[1764101085928,0.0485169,136.54,136.53,1.76334447]
[1764101086134,0.2385169,136.54,136.53,1.76334447]
[1764101086932,0.0485169,136.54,136.53,1.76334447]
[1764101088839,0.0485169,136.54,136.52,0.05481809]
[1764101089029,0.0485169,136.54,136.52,3.02481809]
[1764101089843,2.70494862,136.59,136.53,2.97]
[1764101090029,25.16,136.58,136.57,2.97]
[1764101092248,25.4,136.58,136.56,0.04889362]
[1764101092434,25.4,136.58,136.57,1.75208978]
[1764101092836,25.4,136.58,136.56,0.04889362]
[1764101094137,0.24,136.57,136.56,0.04889362]
[1764101094545,25.4,136.58,136.56,0.04889362]
[1764101096339,25.16,136.57,136.56,3.01889362]
[1764101098435,25.4,136.57,136.56,0.04889362]
[1764101100349,25.16,136.57,136.56,0.04889362]
[1764101100758,25.4,136.57,136.56,0.04889362]
[1764101100941,25.16,136.57,136.56,2.90889362]
[1764101101647,25.16,136.57,136.56,0.04889362]
[1764101102039,25.4,136.57,136.56,0.04889362]
[1764101102653,25.16,136.57,136.56,0.04889362]
[1764101103046,0.29456161,136.59,136.56,2.90889362]
[1764101103354,25.16,136.58,136.57,1.75440468]
[1764101103651,25.16,136.58,136.57,4.61440468]
[1764101103847,25.16,136.58,136.57,2.86]
[1764101104755,25.4,136.58,136.56,0.04889362]
[1764101105356,25.16,136.58,136.56,2.90889362]
[1764101106241,25.16,136.58,136.56,9.50239362]
[1764101107358,0.05456161,136.59,136.56,9.50239362]
[1764101107556,0.05456161,136.59,136.58,1.75600974]
[1764101109247,0.05456161,136.59,136.58,4.61600974]
[1764101109445,0.05456161,136.59,136.58,2.86]
[1764101110361,0.05456161,136.59,136.57,2.86]
[1764101110655,0.05456161,136.59,136.58,1.75720405]
[1764101112364,0.05456161,136.59,136.58,4.61720405]
[1764101112756,0.05456161,136.59,136.58,2.86]
[1764101114162,0.05456161,136.59,136.58,9.4526]
[1764101114359,5.36144316,136.63,136.59,2.86]
[1764101114559,30.76144316,136.65,136.62,2.86]
[1764101114863,5.12517998,136.64,136.62,2.86]
[1764101115061,30.76144316,136.65,136.62,2.86]
[1764101115363,5.12517872,136.64,136.62,2.90678459]
[1764101115565,30.57447333,136.65,136.62,2.90678459]
[1764101115753,5.12576058,136.64,136.62,2.90678459]
[1764101115949,30.81447333,136.65,136.62,2.90678459]
[1764101116156,0.24,136.63,136.62,0.04678459]
[1764101116355,10.72720374,136.63,136.62,0.04678459]
[1764101116562,5.36576058,136.63,136.62,0.04678459]
[1764101116753,10.72720374,136.63,136.62,0.04678459]
[1764101116958,5.36576058,136.63,136.62,0.04678459]
[1764101117263,10.72720374,136.63,136.62,0.04678459]
[1764101117662,0.24,136.62,136.56,9.7033]
[1764101117859,5.36576058,136.61,136.6,1.75870076]
[1764101118165,10.4907032,136.63,136.61,3.11]
[1764101118355,5.12926004,136.62,136.61,3.11]
[1764101119668,0.24,136.61,136.6,0.04917909]
[1764101119863,0.24,136.61,136.6,1.80789564]
[1764101120061,0.24,136.61,136.6,0.04917909]
[1764101120267,5.37386352,136.61,136.6,1.80850455]
[1764101120465,5.37386352,136.61,136.6,0.04917909]
[1764101120670,5.13386352,136.61,136.6,1.80863572]
[1764101120970,0.24,136.62,136.6,0.04917909]
[1764101121171,0.24,136.62,136.6,1.80876799]
[1764101121363,0.24,136.62,136.6,0.04917909]
[1764101121562,0.24,136.62,136.6,1.80917678]
[1764101121762,0.24,136.62,136.6,0.04917909]
[1764101121968,0.24,136.62,136.6,1.80888493]
[1764101122172,0.24,136.62,136.6,0.04917909]
[1764101122469,0.24,136.61,136.6,1.80887381]
[1764101122672,0.24,136.61,136.6,0.04917909]
[1764101122870,0.24,136.61,136.6,1.80889966]
[1764101123069,0.24,136.61,136.6,0.04917909]
[1764101123269,0.24,136.61,136.6,1.80924903]
[1764101123476,0.24,136.61,136.6,0.04917909]
[1764101123663,0.24,136.61,136.6,1.80937922]
[1764101123863,0.24,136.61,136.6,0.04917909]
[1764101124064,0.24,136.61,136.6,1.80973807]
[1764101124278,0.24,136.61,136.6,0.04917909]
[1764101124463,0.24,136.61,136.6,1.81051308]
[1764101124663,0.24,136.61,136.6,0.04917909]
[1764101124864,0.24,136.61,136.6,1.81069246]
[1764101125065,0.24,136.61,136.6,0.04917909]
[1764101125265,0.24,136.61,136.6,1.81074437]
[1764101125475,0.24,136.61,136.6,0.04917909]
[1764101125674,0.24,136.61,136.6,1.8106089]
[1764101125973,0.24,136.61,136.6,0.04917909]
[1764101126171,5.61991763,136.62,136.6,1.81005755]
[1764101126371,5.61991763,136.62,136.6,0.04917909]
[1764101126574,5.61991763,136.62,136.6,1.81015631]
[1764101126776,5.61991763,136.62,136.6,0.04917909]
[1764101127071,0.24,136.61,136.6,1.81020501]
[1764101127368,0.24,136.62,136.6,0.04917909]
[1764101127573,0.24,136.62,136.6,1.81054103]
[1764101127874,0.24,136.62,136.6,0.04917909]
[1764101128075,0.24,136.62,136.6,1.81040902]
[1764101128277,6.8308,136.62,136.6,0.04917909]
[1764101128576,6.8308,136.62,136.6,1.81082929]
[1764101128766,6.8308,136.62,136.6,0.04917909]
[1764101128967,6.8308,136.62,136.6,1.81128135]
[1764101129167,6.8308,136.62,136.6,0.04917909]
[1764101129367,6.8308,136.62,136.6,1.81170101]
[1764101129563,6.8308,136.62,136.6,0.04917909]
[1764101129764,6.8308,136.62,136.6,1.81160647]
[1764101129973,0.24,136.61,136.6,0.04917909]
[1764101130176,10.75208488,136.61,136.6,0.04917909]
[1764101130376,10.51208488,136.61,136.6,0.04917909]
[1764101131477,10.75208488,136.61,136.6,0.04917909]
[1764101132064,17.34328488,136.61,136.6,0.04917909]
[1764101133475,10.75208488,136.61,136.6,0.04917909]
[1764101133676,5.38266808,136.61,136.6,4.61917909]
[1764101133881,0.04904353,136.63,136.61,3.11]
[1764101134574,0.28904353,136.63,136.6,0.04917909]
[1764101134880,0.28904353,136.63,136.61,1.76421292]
[1764101134881,5.38309298,136.62,136.61,1.76421292]
[1764101135287,5.38309298,136.62,136.61,4.87421292]
[1764101135579,5.38309298,136.62,136.61,3.11]
[1764101136479,0.24,136.61,136.6,0.04917909]
[1764101137178,5.62303266,136.61,136.55,3.11]
[1764101137381,113.60610912,136.63,136.55,3.11]
[1764101137382,0.24,136.59,136.58,1.7651465]
[1764101137573,0.24,136.59,136.55,3.11]
[1764101137574,0.24,136.58,136.57,1.7651465]
[1764101137769,10.75977875,136.58,136.57,1.7651465]
[1764101138175,10.75977875,136.58,136.47,115.8265]
[1764101138176,0.24,136.57,136.49,3.11]
[1764101138381,10.76365838,136.56,136.49,3.11]
[1764101138576,0.29375773,136.54,136.52,0.04753011]
[1764101138776,25.16,136.53,136.52,0.04753011]
[1764101139178,30.29997277,136.53,136.52,0.04753011]
[1764101139385,25.16,136.53,136.52,0.04753011]
[1764101141779,25.4,136.53,136.52,0.04753011]
[1764101141987,30.53630207,136.53,136.52,0.04753011]
[1764101142287,35.91625427,136.53,136.52,0.04753011]
[1764101142774,30.53630207,136.53,136.52,0.04753011]
[1764101146589,25.4,136.53,136.52,0.04753011]
[1764101147892,25.45375773,136.54,136.52,0.04753011]
[1764101148089,0.05375773,136.54,136.53,1.7645555]
[1764101148291,25.21375773,136.54,136.53,1.7645555]
[1764101150792,25.21375773,136.54,136.52,2.94753011]
[1764101152496,25.45375773,136.54,136.52,2.94753011]
[1764101155592,0.29375773,136.54,136.52,2.94753011]
[1764101155812,0.29375773,136.54,136.53,1.76134032]
[1764101156501,0.29375773,136.54,136.52,0.04753011]
[1764101156701,0.29375773,136.54,136.45,2.9]
[1764101157001,5.36938847,136.53,136.45,2.9]
[1764101157201,4.21920629,136.52,136.45,2.9]
[1764101157393,4.21920629,136.52,136.41,181.71988358]
[1764101157717,4.21920629,136.49,136.45,0.04915368]
[1764101157891,4.21920629,136.46,136.39,2.9]
[1764101158092,0.04629872,136.44,136.39,2.9]
[1764101158400,0.04629872,136.44,136.41,2.94735903]
[1764101159894,0.04629872,136.44,136.41,9.54805903]
[1764101160203,0.04629872,136.44,136.42,3.02]
[1764101160496,5.15503892,136.49,136.43,3.02]
[1764101160700,25.18,136.49,136.46,4.78013088]
[1764101161003,10.74303121,136.52,136.48,4.78013088]
[1764101161204,25.18,136.51,136.49,1.76013088]
[1764101161400,25.23594261,136.51,136.49,1.81608527]
[1764101161603,25.23594261,136.51,136.49,0.05595439]
[1764101162205,30.39098153,136.51,136.49,0.05595439]
[1764101162703,2.70694422,136.5,136.49,0.05595439]
[1764101163496,117.52557543,136.5,136.39,3.02]
[1764101163692,2.70694422,136.45,136.44,1.75951025]
[1764101163900,27.88694422,136.45,136.44,1.75951025]
[1764101164094,35.92303121,136.49,136.45,3.02]
[1764101164295,7.86198314,136.52,136.46,4.77951025]
[1764101164504,0.0491661,136.5,136.48,0.049986]
[1764101165097,2.75611032,136.5,136.48,0.049986]
[1764101165406,7.91114924,136.5,136.48,0.049986]
[1764101165601,13.48761076,136.5,136.48,0.049986]
[1764101165902,10.73150044,136.49,136.4,3.02]
[1764101166103,2.70694422,136.46,136.44,1.75929681]
[1764101166303,25.18,136.45,136.4,3.02]
[1764101166505,25.18,136.45,136.43,1.75904417]
[1764101166901,25.23408198,136.45,136.43,1.81413489]
[1764101167098,25.23408198,136.45,136.43,0.05509072]
[1764101167303,25.23408198,136.45,136.43,1.81337666]
[1764101167499,25.23408198,136.45,136.43,0.05509072]
[1764101167699,25.23408198,136.45,136.43,1.81317839]
[1764101167899,25.23408198,136.45,136.43,0.05509072]
[1764101168100,25.23408198,136.45,136.43,1.81302001]
[1764101168501,25.23408198,136.45,136.36,3.02]
[1764101168709,6.6006,136.42,136.4,1.75785287]
[1764101168904,6.6006,136.42,136.39,1.75785287]
[1764101169109,6.44946175,136.43,136.39,1.75785287]
[1764101169304,17.18096219,136.43,136.38,1.75785287]
[1764101169605,0.04671315,136.42,136.39,0.05125194]
[1764101169993,6.6009,136.41,136.39,0.05125194]
[1764101170399,6.44946175,136.4,136.39,0.00125194]
[1764101170599,6.44946175,136.4,136.23,438.0]
[1764101170600,102.7029,136.38,136.28,3.02]
[1764101170903,102.7029,136.38,136.33,1.75731872]
[1764101170904,30.74506699,136.37,136.33,1.75731872]
[1764101171109,25.18,136.37,136.33,1.75731872]
[1764101171408,6.6034,136.36,136.33,1.75731872]
[1764101171603,25.18,136.35,136.33,1.80525477]
[1764101171793,25.18,136.35,136.33,0.04793605]
[1764101171994,25.18,136.35,136.33,1.80411356]
[1764101172198,25.18,136.35,136.33,0.04793605]
[1764101172393,31.7839,136.35,136.33,1.80251151]
[1764101172602,31.7839,136.35,136.33,0.04793605]
[1764101174695,37.32632495,136.35,136.33,0.04793605]
[1764101174893,6.6048,136.33,136.28,3.02]
[1764101175097,6.6048,136.33,136.31,1.75353206]
[1764101175800,6.6048,136.33,136.3,1.75353206]
[1764101176011,0.05287987,136.32,136.29,0.05084428]
[1764101176213,6.65817987,136.32,136.3,1.75260751]
[1764101177208,6.6058,136.31,136.29,0.05084428]
[1764101177412,25.2,136.3,136.29,0.00084428]
[1764101177712,6.6076,136.27,136.21,2.89]
[1764101177909,25.2,136.26,136.25,1.75003585]
[1764101178114,25.2,136.26,136.25,4.64003585]
[1764101178313,25.2,136.26,136.25,2.89]
[1764101178606,0.04625121,136.27,136.25,2.89]
[1764101178800,0.04625121,136.27,136.26,4.63833089]
[1764101179005,0.04625121,136.27,136.26,2.89]
[1764101182110,0.04625121,136.27,136.24,0.02041153]
[1764101182313,0.04625121,136.27,136.24,2.91041153]
[1764101182519,25.24625121,136.27,136.24,2.91041153]
[1764101183515,0.04625121,136.27,136.24,2.91041153]
[1764101187318,0.04625121,136.27,136.26,1.74300632]
[1764101187519,25.24625121,136.27,136.26,4.63300632]
[1764101187727,0.04625121,136.27,136.26,2.89]
[1764101190218,0.04625121,136.27,136.24,0.02041153]
[1764101190422,0.04625121,136.27,136.24,2.91041153]
[1764101190818,0.04625121,136.27,136.26,1.74319354]
[1764101191321,0.04625121,136.27,136.24,2.91041153]
[1764101191523,0.04625121,136.27,136.26,1.74401389]
[1764101191912,0.04625121,136.27,136.26,4.63401389]
[1764101192121,0.04625121,136.27,136.26,2.89]
[1764101194924,6.46299388,136.34,136.29,2.89]
[1764101194925,5.51429065,136.34,136.29,2.89]
[1764101195252,25.22,136.34,136.3,1.74299367]
[1764101195526,25.22,136.34,136.31,1.74299367]
[1764101195718,25.22,136.34,136.26,2.89]
[1764101195919,0.04771099,136.31,136.3,4.63173982]
[1764101196122,5.51429065,136.38,136.33,2.89]
[1764101196317,30.73429065,136.41,136.35,1.74047668]
[1764101196523,0.05149637,136.37,136.36,1.74047668]
[1764101196722,0.05089439,136.38,136.35,2.94058116]
[1764101196925,0.05089439,136.38,136.36,1.7400435]
[1764101197425,0.05089439,136.38,136.35,0.05058116]
[1764101198122,5.56518504,136.38,136.35,0.05058116]
[1764101198323,0.05089439,136.38,136.35,0.05058116]
[1764101198521,5.56518504,136.38,136.35,0.05058116]
[1764101198722,0.05089439,136.38,136.35,0.05058116]
[1764101198921,5.56518504,136.38,136.35,0.05058116]
[1764101199117,0.05089439,136.38,136.35,0.05058116]
[1764101200228,30.76791696,136.37,136.36,1.74845044]
[1764101200433,30.76791696,136.37,136.35,0.05058116]
[1764101200726,5.54791696,136.37,136.36,1.74898208]
[1764101200929,30.76899148,136.37,136.36,1.74898208]
[1764101201126,30.76899148,136.37,136.35,0.05058116]
[1764101201323,25.22,136.37,136.35,0.05058116]
[1764101201626,5.55585532,136.36,136.35,0.05058116]
[1764101203122,0.05089439,136.38,136.35,0.05058116]
[1764101203327,5.56276141,136.37,136.35,0.05058116]
[1764101203526,5.56276141,136.36,136.35,0.05058116]
[1764101204223,12.38597263,136.36,136.35,0.05058116]
[1764101204828,5.56276141,136.36,136.35,0.05058116]
[1764101205027,37.60597263,136.36,136.35,0.05058116]
[1764101206133,30.78276141,136.36,136.35,0.05058116]
[1764101206335,42.78632792,136.36,136.35,0.05058116]
[1764101206725,17.56632792,136.36,136.35,0.05058116]
[1764101206925,42.76632792,136.36,136.35,0.05058116]
[1764101207530,30.38035529,136.36,136.35,0.05058116]
[1764101207740,42.74941357,136.36,136.35,0.05058116]
[1764101207938,49.35311357,136.36,136.29,2.89]
[1764101208245,6.7917506,136.34,136.31,1.75781207]
[1764101208428,10.75766297,136.33,136.31,1.75781207]
[1764101208627,5.57730768,136.32,136.31,1.75781207]
[1764101209635,30.77730768,136.32,136.31,1.75781207]
[1764101210437,36.02044652,136.32,136.31,1.75781207]
[1764101211837,6.6057,136.31,136.25,3.04]
[1764101212135,0.05111736,136.29,136.25,3.04]
[1764101212332,5.57730768,136.28,136.25,3.04]
[1764101212539,5.57730768,136.27,136.25,3.04]
[1764101212837,0.05111736,136.29,136.25,3.04]
[1764101213030,5.60500491,136.28,136.25,3.04]
[1764101213233,5.61092878,136.27,136.25,3.04]
[1764101213433,0.05111736,136.29,136.25,3.04]
[1764101213635,5.61092878,136.28,136.25,3.04]
[1764101213839,5.61092878,136.27,136.25,3.04]
[1764101214138,6.65781736,136.29,136.25,3.04]
[1764101214441,5.61336913,136.28,136.25,3.04]
[1764101214743,5.61336913,136.27,136.25,3.04]
[1764101215033,6.6072,136.28,136.25,3.04]
[1764101215244,0.05111736,136.29,136.25,3.04]
[1764101215431,5.61533859,136.28,136.25,3.04]
[1764101215630,0.05111736,136.29,136.25,3.04]
[1764101215828,5.61533821,136.28,136.25,3.04]
[1764101216036,0.05111736,136.29,136.25,3.04]
[1764101216237,5.61533821,136.28,136.25,3.04]
[1764101216539,6.65781736,136.29,136.25,3.04]
[1764101216733,5.61547766,136.28,136.25,3.04]
[1764101216938,6.65781736,136.29,136.25,3.04]
[1764101217135,5.61547766,136.28,136.25,3.04]
[1764101217336,0.05111736,136.29,136.25,3.04]
[1764101217536,5.61552583,136.28,136.25,3.04]
[1764101217751,0.05111736,136.29,136.25,3.04]
[1764101217939,0.00111736,136.29,136.25,3.04]
[1764101218150,6.82008773,136.32,136.27,3.04]
[1764101218341,25.2,136.33,136.31,1.77320055]
[1764101218533,5.2300528,136.32,136.31,1.77320055]
[1764101218737,5.2300528,136.32,136.29,3.04]
[1764101218939,31.8048,136.33,136.29,3.04]
[1764101219237,11.89083043,136.32,136.29,3.08883557]
[1764101219433,0.05640103,136.32,136.29,3.08883557]
[1764101219630,0.05640103,136.32,136.31,1.77248063]
[1764101219829,5.28544236,136.32,136.29,3.08883557]
[1764101220039,0.05640103,136.32,136.29,3.08883557]
[1764101220437,5.22929546,136.31,136.29,3.08883557]
[1764101220641,0.05640103,136.32,136.3,1.771922]
[1764101220843,5.22973448,136.31,136.3,1.771922]
[1764101221245,0.05640103,136.32,136.31,2.92]
[1764101221442,0.05640103,136.32,136.29,0.04883557]
[1764101221647,0.05640103,136.32,136.31,1.77177574]
[1764101221942,2.71489475,136.36,136.32,2.92]
[1764101222242,6.82008773,136.37,136.35,1.77094246]
[1764101222243,25.2,136.37,136.35,1.77094246]
[1764101222446,5.22566732,136.36,136.35,2.92]
[1764101222646,5.22566732,136.36,136.33,2.92]
[1764101222950,0.04816892,136.36,136.33,2.96813163]
[1764101223151,0.04816892,136.36,136.35,1.76929674]
[1764101223451,5.2757825,136.36,136.33,0.04813163]
[1764101223652,5.22761358,136.35,136.33,0.04813163]
[1764101223854,5.22761358,136.34,136.33,0.04813163]
[1764101224554,9.46427966,136.34,136.33,0.04813163]
[1764101224948,10.92427966,136.34,136.33,0.04813163]
[1764101225144,10.92427966,136.34,136.27,2.92]
[1764101225343,4.23666608,136.31,136.29,1.77247125]
[1764101225544,30.44761358,136.3,136.29,1.77247125]
[1764101226553,30.44761358,136.3,136.28,0.05123833]
[1764101226849,5.22761358,136.29,136.28,0.05123833]
[1764101227354,25.26893347,136.31,136.28,2.97123833]
[1764101227554,5.23035603,136.3,136.29,1.7744671]
[1764101230254,30.45035603,136.3,136.29,1.7744671]
[1764101231753,5.23035603,136.3,136.29,1.7744671]
[1764101232056,30.45035603,136.3,136.29,4.6944671]
[1764101232256,30.45035603,136.3,136.28,0.05123833]
[1764101232457,25.22,136.3,136.29,1.7763897]
[1764101232656,30.4508571,136.3,136.29,1.7763897]
[1764101232958,30.45085646,136.3,136.29,1.7763897]
[1764101233553,0.04893347,136.31,136.29,2.92]
[1764101235362,0.04893347,136.31,136.3,1.77461352]
[1764101235558,5.28100434,136.31,136.3,1.77461352]
[1764101236156,10.84863387,136.31,136.3,1.77461352]
[1764101236361,5.28100434,136.31,136.3,1.77461352]
[1764101237062,10.84925179,136.31,136.3,1.77461352]
[1764101237250,5.28100434,136.31,136.3,1.77461352]
[1764101237448,10.8503203,136.31,136.3,1.77461352]
[1764101238360,5.28100434,136.31,136.3,4.77461352]
[1764101238663,5.28100434,136.31,136.3,3.0]
[1764101238967,0.04893347,136.31,136.3,3.0]
[1764101239756,11.05675381,136.37,136.3,9.6061]
[1764101239963,10.80254839,136.36,136.34,3.0]
[1764101240164,10.80254839,136.35,136.29,3.0]
[1764101240468,25.22,136.37,136.34,1.77293868]
[1764101240761,17.40328739,136.36,136.34,1.77293868]
[1764101240965,10.80008739,136.35,136.34,1.82457204]
[1764101241167,10.80008739,136.35,136.34,0.05163336]
[1764101241367,10.80008739,136.35,136.34,1.82462447]
[1764101241563,10.80008739,136.35,136.34,0.05163336]
[1764101241763,10.80008739,136.35,136.34,1.82469151]
[1764101241964,10.80008739,136.35,136.34,0.05163336]
[1764101242265,0.04892205,136.37,136.35,3.0]
[1764101242470,0.04892205,136.37,136.36,4.77189181]
[1764101242767,0.04892205,136.37,136.36,3.0]
[1764101245374,11.05675381,136.42,136.36,3.0]
[1764101245666,25.2,136.44,136.41,1.76840908]
[1764101245869,10.7351368,136.43,136.42,1.76840908]
[1764101246064,1.27596385,136.46,136.42,3.0]
[1764101246369,30.36617842,136.45,136.43,1.76693281]
[1764101246569,25.25309832,136.45,136.43,1.82226697]
[1764101246767,25.25309832,136.45,136.43,0.05533416]
[1764101246970,25.25309832,136.45,136.43,1.81986215]
[1764101247165,5.21468551,136.45,136.43,0.05533416]
[1764101247372,30.41468551,136.45,136.43,1.81823386]
[1764101247571,5.21468551,136.45,136.43,3.05533416]
[1764101247788,25.25309832,136.45,136.44,1.7631517]
[1764101248072,0.05309832,136.45,136.43,9.65503416]
[1764101248262,0.05309832,136.45,136.44,3.0]
[1764101250678,5.15352156,136.53,136.46,3.0]
[1764101250870,4.23666608,136.55,136.49,4.75494223]
[1764101250871,25.2,136.52,136.49,4.75494223]
[1764101251173,25.2,136.52,136.49,3.0]
[1764101251572,25.24674451,136.52,136.49,3.05301091]
[1764101251875,25.2,136.51,136.49,3.05301091]
[1764101253767,25.2,136.51,136.49,0.05301091]
[1764101253969,25.2,136.51,136.49,1.80253116]
[1764101254275,25.2,136.51,136.49,0.05301091]
[1764101254573,0.04674451,136.52,136.49,1.80150816]
[1764101254766,25.2,136.5,136.49,0.05301091]
[1764101254966,25.2,136.5,136.49,1.80170496]
[1764101255167,25.2,136.5,136.49,0.05301091]
[1764101255372,25.2,136.5,136.49,1.80035626]
[1764101255566,25.2,136.5,136.49,0.05301091]
[1764101255766,25.2,136.5,136.49,1.8004224]
[1764101255967,0.04674451,136.52,136.49,3.05301091]
[1764101256163,25.2,136.51,136.5,1.7471024]
[1764101257176,0.04674451,136.52,136.5,1.7471024]
[1764101257373,25.24674451,136.52,136.5,4.7471024]
[1764101257578,25.24674451,136.52,136.5,3.0]
[1764101258076,25.24674451,136.52,136.49,0.05301091]
[1764101258278,25.24674451,136.52,136.5,1.74536378]
[1764101259076,25.2,136.51,136.5,1.74536378]
[1764101259274,0.04674451,136.52,136.5,1.74536378]
[1764101259475,25.22674451,136.52,136.5,1.74536378]
[1764101260072,25.22674451,136.52,136.5,4.74536378]
[1764101260273,25.22674451,136.52,136.51,1.74536378]
[1764101260473,25.22674451,136.52,136.49,0.05301091]
[1764101260681,25.22674451,136.52,136.5,1.74248698]
[1764101261577,31.82254451,136.52,136.49,0.05301091]
[1764101266177,1.27505221,136.55,136.51,3.0]
[1764101266377,5.48055376,136.61,136.54,4.74036169]
[1764101266686,1.27456187,136.61,136.57,3.0]
[1764101266978,1.27456187,136.61,136.59,3.0]
[1764101266979,25.2,136.61,136.59,3.0]
[1764101267178,22.73711346,136.61,136.6,4.76574792]
[1764101267371,0.05282394,136.61,136.6,3.03]
[1764101270676,25.18,136.65,136.6,3.03]
[1764101270876,25.18,136.65,136.64,1.7259783]
[1764101271283,7.9985,136.67,136.64,1.7259783]
[1764101271484,25.2,136.66,136.64,1.7259783]
[1764101271679,0.05211538,136.66,136.64,1.77702784]
[1764101271882,25.23211538,136.66,136.64,3.08104954]
[1764101272085,0.05211538,136.66,136.64,3.08104954]
[1764101275088,1.27334931,136.72,136.65,3.03]
[1764101275089,25.18,136.71,136.65,3.03]
[1764101275283,25.18,136.71,136.69,1.72017266]
[1764101275476,1.41,136.7,136.69,1.72017266]
[1764101276081,25.23102117,136.71,136.69,4.75017266]
[1764101276383,0.05102117,136.71,136.7,1.72017266]
[1764101276578,1.46102117,136.71,136.68,0.04930089]
[1764101276784,0.05102117,136.71,136.7,1.71777991]
[1764101277186,0.05102117,136.71,136.68,3.07930089]
[1764101280489,25.16,136.75,136.69,3.15]
[1764101280675,1.41,136.77,136.72,4.86503029]
[1764101280676,1.41,136.76,136.72,4.86503029]
[1764101280988,1.41,136.76,136.75,1.71503029]
[1764101281385,25.16,136.77,136.72,3.15]
[1764101281588,26.59,136.79,136.76,1.71304832]
[1764101281786,26.64085638,136.79,136.78,1.71304832]
[1764101282087,0.05085638,136.79,136.76,3.20515646]
[1764101282283,5.42185527,136.86,136.76,3.20515646]
[1764101282482,1.41,136.84,136.8,4.86070093]
[1764101282681,1.41,136.83,136.75,3.15]
[1764101282882,1.41,136.83,136.79,1.71148319]
[1764101283590,1.41,136.81,136.8,0.04780068]
[1764101283975,1.36,136.8,136.72,3.15]
[1764101284187,1.36,136.78,136.77,1.71055333]
[1764101284388,1.36,136.82,136.77,1.71055333]
[1764101284582,1.36,136.82,136.78,4.86055333]
[1764101284787,1.36,136.82,136.81,1.71055333]
[1764101284986,25.23514,136.83,136.8,3.19787152]
[1764101285298,0.05514,136.83,136.81,4.85847709]
[1764101285494,0.05514,136.83,136.82,1.70847709]
[1764101285688,0.05514,136.83,136.81,3.15]
[1764101285888,0.05514,136.83,136.82,4.85743122]
[1764101286085,0.05514,136.83,136.82,3.15]
[1764101286685,1.41514,136.83,136.8,0.04787152]
[1764101286887,1.41514,136.83,136.82,1.70681351]
[1764101287088,1.41514,136.83,136.8,0.04787152]
[1764101287089,1.41514,136.83,136.81,1.70681351]
[1764101288596,25.23514,136.83,136.82,1.70681351]
[1764101288793,25.23514,136.83,136.81,3.15]
[1764101288985,25.23514,136.83,136.82,1.70663458]
[1764101289389,25.23514,136.83,136.8,3.19787152]
[1764101289695,1.36,136.82,136.81,1.70641744]
[1764101289896,1.36,136.82,136.8,0.04787152]
[1764101290187,25.23514,136.83,136.81,1.70704032]
[1764101290392,26.59514,136.83,136.81,1.70704032]
[1764101290693,0.05514,136.83,136.81,1.70704032]
[1764101291595,0.05514,136.83,136.82,1.70704032]
[1764101291802,0.05514,136.83,136.8,3.19787152]
[1764101292097,0.05514,136.83,136.82,1.70685488]
[1764101292291,0.05514,136.83,136.8,3.19787152]
[1764101292993,6.82820438,136.88,136.8,3.19787152]
[1764101293293,26.6,136.89,136.86,1.70615613]
[1764101293497,26.6,136.89,136.87,1.70615613]
[1764101293694,26.6,136.89,136.85,3.15]
[1764101293886,26.6,136.89,136.87,1.70498142]
[1764101294082,26.65580669,136.89,136.87,1.75291964]
[1764101294298,26.65580669,136.89,136.87,0.04793822]
[1764101294496,0.05580669,136.89,136.87,4.90177795]
[1764101294692,1.42,136.93,136.89,3.15]
[1764101294894,1.42,136.91,136.87,3.19793822]
[1764101295096,1.42,136.91,136.88,1.70312081]
[1764101295289,1.42,136.91,136.89,1.70312081]
[1764101295590,103.55754898,136.94,136.89,3.15]
[1764101295591,2.69134898,136.94,136.89,3.15]
[1764101295796,26.65076362,136.93,136.9,0.04987943]
[1764101295997,26.65076362,136.93,136.9,3.19987943]
[1764101295998,25.23076362,136.93,136.9,3.19987943]